[Event "Live Chess"]
[Site "Chess.com"]
[Date "2023.05.20"]
[Round "-"]
[White "nigelst"]
[Black "Singapourfeuj"]
[Result "0-1"]
[WhiteElo "1815"]
[BlackElo "2243"]
[TimeControl "300"]
[EndTime "13:52:06 PDT"]
[Termination "Singapourfeuj won by resignation"]

1. e4 {[%clk 0:04:58.5]} 1... e6 {[%clk 0:04:58.3]} 2. d4 {[%clk 0:04:56.5]}
2... d5 {[%clk 0:04:57.3]} 3. exd5 {[%clk 0:04:55.2]} 3... exd5 {[%clk
0:04:56.4]} 4. Nf3 {[%clk 0:04:54.3]} 4... Bd6 {[%clk 0:04:55.1]} 5. Bd3 {[%clk
0:04:53.1]} 5... Ne7 {[%clk 0:04:53.8]} 6. c4 {[%clk 0:04:49.8]} 6... c6 {[%clk
0:04:52.7]} 7. c5 {[%clk 0:04:48.9]} 7... Bc7 {[%clk 0:04:51.6]} 8. O-O {[%clk
0:04:48.5]} 8... Bg4 {[%clk 0:04:50.1]} 9. Bg5 {[%clk 0:04:45]} 9... f6 {[%clk
0:04:49.2]} 10. Bh4 {[%clk 0:04:43.1]} 10... Nd7 {[%clk 0:04:47.7]} 11. Nbd2
{[%clk 0:04:41.5]} 11... Nf8 {[%clk 0:04:46.6]} 12. Bg3 {[%clk 0:04:40.2]} 12...
Nfg6 {[%clk 0:04:44.8]} 13. Qb3 {[%clk 0:04:35.1]} 13... Bxg3 {[%clk 0:04:40.9]}
14. hxg3 {[%clk 0:04:33.7]} 14... Qd7 {[%clk 0:04:35.9]} 15. Rfe1 {[%clk
0:04:31.2]} 15... O-O-O {[%clk 0:04:33.9]} 16. a4 {[%clk 0:04:25.6]} 16... Rhe8
{[%clk 0:03:59.6]} 17. a5 {[%clk 0:04:21]} 17... a6 {[%clk 0:03:58.5]} 18. Qb6
{[%clk 0:04:14.6]} 18... Qc7 {[%clk 0:03:55.3]} 19. Qxc7+ {[%clk 0:04:11.4]}
19... Kxc7 {[%clk 0:03:51.8]} 20. Nh4 {[%clk 0:03:52.9]} 20... Nxh4 {[%clk
0:03:46.2]} 21. gxh4 {[%clk 0:03:51.3]} 21... Bf5 {[%clk 0:03:44.6]} 22. Bxf5
{[%clk 0:03:49.4]} 22... Nxf5 {[%clk 0:03:43.6]} 23. Nf3 {[%clk 0:03:45.5]}
23... Kd7 {[%clk 0:03:41.9]} 24. Kf1 {[%clk 0:03:42.9]} 24... Re4 {[%clk
0:03:40.4]} 25. h5 {[%clk 0:03:26.8]} 25... Rde8 {[%clk 0:03:35.3]} 26. Rxe4
{[%clk 0:03:17.6]} 26... dxe4 {[%clk 0:03:29.9]} 27. Nd2 {[%clk 0:03:12]} 27...
Nxd4 {[%clk 0:03:28.4]} 28. Re1 {[%clk 0:03:08.1]} 28... f5 {[%clk 0:03:26.8]}
29. Nc4 {[%clk 0:03:03.3]} 29... Nb3 {[%clk 0:03:22.7]} 30. Rd1+ {[%clk
0:02:52.1]} 30... Kc7 {[%clk 0:03:20.9]} 31. Nd6 {[%clk 0:02:48.3]} 31... Rd8
{[%clk 0:03:19.5]} 32. Ke1 {[%clk 0:02:44.4]} 32... Nxc5 {[%clk 0:03:16.8]} 33.
Nxf5 {[%clk 0:02:42.6]} 33... Rxd1+ {[%clk 0:03:14.6]} 34. Kxd1 {[%clk
0:02:40.8]} 34... g6 {[%clk 0:03:12]} 35. hxg6 {[%clk 0:02:39]} 35... hxg6
{[%clk 0:03:11]} 36. Ne7 {[%clk 0:02:34.8]} 36... Nd3 {[%clk 0:03:08.9]} 37.
Nxg6 {[%clk 0:02:32.4]} 37... Nxb2+ {[%clk 0:03:04.8]} 38. Kc2 {[%clk
0:02:28.7]} 38... Nc4 {[%clk 0:03:02.6]} 39. Kc3 {[%clk 0:02:23.2]} 39... Nxa5
{[%clk 0:03:01.6]} 40. Kd4 {[%clk 0:02:20.6]} 40... b5 {[%clk 0:02:59.8]} 41.
Kxe4 {[%clk 0:02:19.6]} 41... b4 {[%clk 0:02:58.9]} 42. Ne5 {[%clk 0:02:18.6]}
42... b3 {[%clk 0:02:57.3]} 43. Nd3 {[%clk 0:02:17.7]} 43... Nc4 {[%clk
0:02:54.3]} 44. Kd4 {[%clk 0:02:14.7]} 44... b2 {[%clk 0:02:53]} 45. Nxb2 {[%clk
0:02:13.1]} 45... Nxb2 {[%clk 0:02:52.2]} 46. g4 {[%clk 0:02:12.7]} 46... Kd7
{[%clk 0:02:48.4]} 47. g5 {[%clk 0:02:11.6]} 47... a5 {[%clk 0:02:41.6]} 48. g6
{[%clk 0:02:10.1]} 48... Ke6 {[%clk 0:02:39.6]} 49. Kc3 {[%clk 0:02:06.5]} 49...
Nd1+ {[%clk 0:02:37.2]} 50. Kb3 {[%clk 0:02:04]} 50... c5 {[%clk 0:02:34]} 51.
f4 {[%clk 0:01:57.8]} 51... Kf6 {[%clk 0:02:30.9]} 52. f5 {[%clk 0:01:56.7]}
52... Ne3 {[%clk 0:02:29.5]} 53. Ka4 {[%clk 0:01:54.9]} 53... c4 {[%clk
0:02:28.3]} 54. Ka3 {[%clk 0:01:51.1]} 54... Nxf5 {[%clk 0:02:27]} 55. Kb2
{[%clk 0:01:49]} 55... a4 {[%clk 0:02:25.1]} 56. Kc3 {[%clk 0:01:48.4]} 56... a3
{[%clk 0:02:24.1]} 57. Kc2 {[%clk 0:01:46.1]} 57... Kxg6 {[%clk 0:02:22.5]} 0-1

[Event "Live Chess"]
[Site "Chess.com"]
[Date "2023.05.20"]
[Round "-"]
[White "Reggie016"]
[Black "LozzaLoaf"]
[Result "1-0"]
[WhiteElo "1070"]
[BlackElo "262"]
[TimeControl "300"]
[EndTime "13:52:30 PDT"]
[Termination "Reggie016 won by checkmate"]

1. e4 {[%clk 0:04:59.1]} 1... Nf6 {[%clk 0:04:57.4]} 2. e5 {[%clk 0:04:58.2]}
2... Nd5 {[%clk 0:04:54]} 3. c4 {[%clk 0:04:56.9]} 3... Nb4 {[%clk 0:04:47.2]}
4. d4 {[%clk 0:04:55.4]} 4... b6 {[%clk 0:04:39.3]} 5. Bd2 {[%clk 0:04:53.2]}
5... c5 {[%clk 0:04:37.2]} 6. dxc5 {[%clk 0:04:52.1]} 6... bxc5 {[%clk
0:04:35.2]} 7. Nc3 {[%clk 0:04:51.2]} 7... Qa5 {[%clk 0:04:28]} 8. g3 {[%clk
0:04:48.1]} 8... Nxa2 {[%clk 0:04:20.2]} 9. Rxa2 {[%clk 0:04:44.4]} 9... Qxa2
{[%clk 0:04:18.9]} 10. Nxa2 {[%clk 0:04:43.7]} 10... Nc6 {[%clk 0:04:17]} 11.
Nf3 {[%clk 0:04:38.5]} 11... Nxe5 {[%clk 0:04:15.6]} 12. Nxe5 {[%clk 0:04:37.3]}
12... d6 {[%clk 0:04:15]} 13. Nc6 {[%clk 0:04:35.1]} 13... Bb7 {[%clk
0:04:11.4]} 14. Qa4 {[%clk 0:04:33.1]} 14... Bxc6 {[%clk 0:04:10.1]} 15. Qxc6+
{[%clk 0:04:31.8]} 15... Kd8 {[%clk 0:04:07.5]} 16. Qxa8+ {[%clk 0:04:31.2]}
16... Kd7 {[%clk 0:04:04.1]} 17. Qxa7+ {[%clk 0:04:29.3]} 17... Ke6 {[%clk
0:04:02.3]} 18. Bh3+ {[%clk 0:04:27.6]} 18... Kf6 {[%clk 0:03:59.6]} 19. O-O
{[%clk 0:04:22]} 19... e5 {[%clk 0:03:57.7]} 20. f4 {[%clk 0:04:20.5]} 20...
exf4 {[%clk 0:03:56.5]} 21. Rxf4+ {[%clk 0:04:19.8]} 21... Kg6 {[%clk
0:03:55.6]} 22. Bf5+ {[%clk 0:03:52.6]} 22... Kf6 {[%clk 0:03:50.9]} 23. Bc3+
{[%clk 0:03:48.9]} 23... Kg5 {[%clk 0:03:49.3]} 24. Qxf7 {[%clk 0:03:38.2]}
24... g6 {[%clk 0:03:47.7]} 25. Bxh8 {[%clk 0:03:29.7]} 25... gxf5 {[%clk
0:03:45.5]} 26. Qxf5+ {[%clk 0:03:28.5]} 26... Kh6 {[%clk 0:03:43.5]} 27. Rh4#
{[%clk 0:03:25.2]} 1-0

[Event "Live Chess"]
[Site "Chess.com"]
[Date "2023.05.20"]
[Round "-"]
[White "1600x"]
[Black "Brooms1989"]
[Result "1-0"]
[WhiteElo "1782"]
[BlackElo "1018"]
[TimeControl "300"]
[EndTime "13:52:48 PDT"]
[Termination "1600x won by resignation"]

1. d4 {[%clk 0:04:55.1]} 1... Nf6 {[%clk 0:04:42.1]} 2. Nc3 {[%clk 0:04:55]}
2... g6 {[%clk 0:04:40.5]} 3. e4 {[%clk 0:04:42.7]} 3... d6 {[%clk 0:04:37.5]}
4. e5 {[%clk 0:04:21.4]} 4... dxe5 {[%clk 0:04:34.8]} 5. dxe5 {[%clk 0:04:07.9]}
5... Qxd1+ {[%clk 0:04:34.7]} 6. Nxd1 {[%clk 0:04:06]} 6... Ng4 {[%clk
0:04:30.5]} 7. Nf3 {[%clk 0:04:04.5]} 7... Nc6 {[%clk 0:04:26.2]} 8. h3 {[%clk
0:04:02.7]} 8... Ngxe5 {[%clk 0:04:22.9]} 9. Nxe5 {[%clk 0:04:00.6]} 9... Nxe5
{[%clk 0:04:22.8]} 10. b3 {[%clk 0:03:59.2]} 10... Bg7 {[%clk 0:04:18.5]} 11.
Bb2 {[%clk 0:03:49.4]} 11... O-O {[%clk 0:04:15.3]} 12. f4 {[%clk 0:03:46.6]}
12... Nc6 {[%clk 0:04:10.1]} 13. Bxg7 {[%clk 0:03:42.6]} 13... Kxg7 {[%clk
0:04:09.4]} 14. Ne3 {[%clk 0:03:40.7]} 14... e5 {[%clk 0:04:00.9]} 15. fxe5
{[%clk 0:03:39.1]} 15... Nxe5 {[%clk 0:04:00.8]} 16. O-O-O {[%clk 0:03:36.9]}
16... Be6 {[%clk 0:03:57.7]} 17. g4 {[%clk 0:03:33]} 17... Rad8 {[%clk
0:03:48.6]} 18. Rxd8 {[%clk 0:03:30.7]} 18... Rxd8 {[%clk 0:03:48.5]} 19. Bg2
{[%clk 0:03:28.9]} 19... c6 {[%clk 0:03:45.4]} 20. a3 {[%clk 0:03:27.3]} 20...
f5 {[%clk 0:03:08.5]} 21. gxf5 {[%clk 0:03:22.5]} 21... Bxf5 {[%clk 0:03:08.4]}
22. Nxf5+ {[%clk 0:03:20.9]} 22... gxf5 {[%clk 0:03:06.2]} 23. Rf1 {[%clk
0:03:16.9]} 23... Rf8 {[%clk 0:03:04]} 24. Bf3 {[%clk 0:03:12]} 24... Nxf3
{[%clk 0:03:01.4]} 25. Rxf3 {[%clk 0:03:09.6]} 25... Kg6 {[%clk 0:02:59.7]} 26.
Rf1 {[%clk 0:03:08.3]} 26... Kg5 {[%clk 0:02:57.2]} 27. Rg1+ {[%clk 0:03:06.5]}
27... Kf4 {[%clk 0:02:55.6]} 28. Rg7 {[%clk 0:03:03.6]} 28... Ke3 {[%clk
0:02:53.9]} 29. Rxb7 {[%clk 0:03:01.4]} 29... Ke2 {[%clk 0:02:49]} 30. Rxa7
{[%clk 0:02:58.3]} 30... f4 {[%clk 0:02:48.5]} 31. Rxh7 {[%clk 0:02:56.4]} 31...
f3 {[%clk 0:02:47.6]} 32. Re7+ {[%clk 0:02:54.6]} 32... Kf2 {[%clk 0:02:44.1]}
33. Kd2 {[%clk 0:02:52.1]} 33... Kg3 {[%clk 0:02:41.3]} 34. Ke1 {[%clk
0:02:50.4]} 34... f2+ {[%clk 0:02:40.5]} 35. Kf1 {[%clk 0:02:48.6]} 35... Kxh3
{[%clk 0:02:37.7]} 36. a4 {[%clk 0:02:44.7]} 36... Kg3 {[%clk 0:02:27.9]} 37.
Re3+ {[%clk 0:02:41.6]} 37... Kf4 {[%clk 0:02:22.4]} 38. Kxf2 {[%clk 0:02:39.3]}
1-0

[Event "Live Chess"]
[Site "Chess.com"]
[Date "2023.05.20"]
[Round "-"]
[White "lordjimvi"]
[Black "LiamClery2020"]
[Result "0-1"]
[WhiteElo "391"]
[BlackElo "2091"]
[TimeControl "300"]
[EndTime "13:52:54 PDT"]
[Termination "LiamClery2020 won by resignation"]

1. e4 {[%clk 0:04:50.7]} 1... Nf6 {[%clk 0:04:59.9]} 2. Qf3 {[%clk 0:04:47.7]}
2... Nc6 {[%clk 0:04:55.8]} 3. d3 {[%clk 0:04:42.9]} 3... e5 {[%clk 0:04:53.8]}
4. c4 {[%clk 0:04:39.8]} 4... Nd4 {[%clk 0:04:51.5]} 5. Qd1 {[%clk 0:04:36]}
5... c6 {[%clk 0:04:50.2]} 6. Nf3 {[%clk 0:04:30.9]} 6... Nxf3+ {[%clk 0:04:49]}
7. Qxf3 {[%clk 0:04:29.3]} 7... d5 {[%clk 0:04:48.9]} 8. exd5 {[%clk 0:04:27.9]}
8... cxd5 {[%clk 0:04:48.8]} 9. cxd5 {[%clk 0:04:24.9]} 9... Nxd5 {[%clk
0:04:48.7]} 10. Be3 {[%clk 0:04:19.2]} 10... Nxe3 {[%clk 0:04:47.1]} 11. Qxe3
{[%clk 0:04:18]} 11... Bd6 {[%clk 0:04:46.2]} 12. d4 {[%clk 0:04:15]} 12... O-O
{[%clk 0:04:45]} 13. dxe5 {[%clk 0:04:13.7]} 13... Bxe5 {[%clk 0:04:44.5]} 14.
Qxe5 {[%clk 0:04:12.3]} 14... Re8 {[%clk 0:04:43.5]} 15. Qe2 {[%clk 0:04:09.4]}
15... Rxe2+ {[%clk 0:04:41.8]} 16. Bxe2 {[%clk 0:04:08.8]} 16... Qe7 {[%clk
0:04:39.6]} 17. Na3 {[%clk 0:04:07.2]} 17... Bg4 {[%clk 0:04:38]} 18. f3 {[%clk
0:04:05.8]} 18... Qb4+ {[%clk 0:04:37.4]} 19. Kf2 {[%clk 0:04:02.2]} 19... Qd4+
{[%clk 0:04:35.3]} 20. Ke1 {[%clk 0:04:00.5]} 20... Qxb2 {[%clk 0:04:34]} 21.
Rd1 {[%clk 0:03:52.6]} 21... Be6 {[%clk 0:04:30.6]} 22. Nb1 {[%clk 0:03:48.9]}
22... Rc8 {[%clk 0:04:26.4]} 23. Nd2 {[%clk 0:03:47.6]} 23... Rd8 {[%clk
0:04:20.4]} 24. Rb1 {[%clk 0:03:46.7]} 24... Qxd2+ {[%clk 0:04:17.5]} 25. Kf2
{[%clk 0:03:45.1]} 25... Bc4 {[%clk 0:04:15.6]} 26. Rhe1 {[%clk 0:03:38.7]}
26... Re8 {[%clk 0:04:13.1]} 27. Rbd1 {[%clk 0:03:36.5]} 27... Rxe2+ {[%clk
0:04:11.6]} 28. Rxe2 {[%clk 0:03:35.3]} 28... Qxe2+ {[%clk 0:04:11.5]} 29. Kg3
{[%clk 0:03:31.8]} 29... Qxd1 {[%clk 0:04:11.4]} 0-1

[Event "Live Chess"]
[Site "Chess.com"]
[Date "2023.05.20"]
[Round "-"]
[White "EdenHazard8"]
[Black "JanMur7"]
[Result "0-1"]
[WhiteElo "2065"]
[BlackElo "1997"]
[TimeControl "300"]
[EndTime "13:53:01 PDT"]
[Termination "JanMur7 won by resignation"]

1. e4 {[%clk 0:04:58.3]} 1... e5 {[%clk 0:04:58.7]} 2. Nf3 {[%clk 0:04:57.5]}
2... Nc6 {[%clk 0:04:58]} 3. Bb5 {[%clk 0:04:56.8]} 3... Nf6 {[%clk 0:04:56.9]}
4. O-O {[%clk 0:04:55.6]} 4... Nxe4 {[%clk 0:04:56.3]} 5. d4 {[%clk 0:04:54.9]}
5... Nd6 {[%clk 0:04:55.1]} 6. Bxc6 {[%clk 0:04:54.1]} 6... dxc6 {[%clk
0:04:55]} 7. dxe5 {[%clk 0:04:54]} 7... Nf5 {[%clk 0:04:54.6]} 8. Qxd8+ {[%clk
0:04:53.9]} 8... Kxd8 {[%clk 0:04:54.5]} 9. Rd1+ {[%clk 0:04:51.5]} 9... Ke8
{[%clk 0:04:52.9]} 10. Nc3 {[%clk 0:04:47]} 10... Ne7 {[%clk 0:04:51.3]} 11. Be3
{[%clk 0:04:43.6]} 11... Bf5 {[%clk 0:04:49.5]} 12. Nd4 {[%clk 0:04:41.5]} 12...
Bg6 {[%clk 0:04:42.4]} 13. f4 {[%clk 0:04:40.6]} 13... Nf5 {[%clk 0:04:38.5]}
14. Nxf5 {[%clk 0:04:37.8]} 14... Bxf5 {[%clk 0:04:38.4]} 15. Rd2 {[%clk
0:04:37.1]} 15... h5 {[%clk 0:04:35.6]} 16. Rad1 {[%clk 0:04:36]} 16... Be7
{[%clk 0:04:35]} 17. Rd7 {[%clk 0:04:29.4]} 17... Bxd7 {[%clk 0:04:33.4]} 0-1

[Event "Live Chess"]
[Site "Chess.com"]
[Date "2023.05.20"]
[Round "-"]
[White "anatoliy10912"]
[Black "domrobson"]
[Result "0-1"]
[WhiteElo "1554"]
[BlackElo "1782"]
[TimeControl "300"]
[EndTime "13:53:03 PDT"]
[Termination "domrobson won by resignation"]

1. e4 {[%clk 0:04:58.4]} 1... e5 {[%clk 0:04:58.7]} 2. Bc4 {[%clk 0:04:57.9]}
2... Nf6 {[%clk 0:04:56.4]} 3. d3 {[%clk 0:04:57.4]} 3... Nc6 {[%clk 0:04:55.6]}
4. Nc3 {[%clk 0:04:56.7]} 4... Bc5 {[%clk 0:04:53.5]} 5. a3 {[%clk 0:04:56.5]}
5... a6 {[%clk 0:04:52.5]} 6. Nf3 {[%clk 0:04:53.4]} 6... Ba7 {[%clk 0:04:51.9]}
7. h3 {[%clk 0:04:52.9]} 7... d6 {[%clk 0:04:51.3]} 8. O-O {[%clk 0:04:49.9]}
8... h6 {[%clk 0:04:49.9]} 9. Be3 {[%clk 0:04:49]} 9... O-O {[%clk 0:04:47.6]}
10. Qd2 {[%clk 0:04:39.3]} 10... Kh7 {[%clk 0:04:44]} 11. Nd5 {[%clk 0:04:33.3]}
11... Nxd5 {[%clk 0:04:41]} 12. Bxd5 {[%clk 0:04:31.6]} 12... Ne7 {[%clk
0:04:39.2]} 13. Ba2 {[%clk 0:04:29.8]} 13... f5 {[%clk 0:04:35.3]} 14. exf5
{[%clk 0:04:26.1]} 14... Nxf5 {[%clk 0:04:32.3]} 15. Bxa7 {[%clk 0:04:22.3]}
15... Rxa7 {[%clk 0:04:30.4]} 16. Qe2 {[%clk 0:04:17.9]} 16... Ra8 {[%clk
0:04:25.4]} 17. Bd5 {[%clk 0:04:14.8]} 17... c6 {[%clk 0:04:21.5]} 18. Ba2
{[%clk 0:04:04.6]} 18... Nh4 {[%clk 0:04:17.6]} 19. Qe4+ {[%clk 0:04:00.8]}
19... Ng6 {[%clk 0:04:12.1]} 20. Nh4 {[%clk 0:03:51.6]} 20... Qxh4 {[%clk
0:04:09.8]} 21. Qxh4 {[%clk 0:03:45.6]} 21... Nxh4 {[%clk 0:04:08.4]} 0-1

[Event "Live Chess"]
[Site "Chess.com"]
[Date "2023.05.20"]
[Round "-"]
[White "diana21strabt"]
[Black "Stanbad1"]
[Result "0-1"]
[WhiteElo "1702"]
[BlackElo "2408"]
[TimeControl "300"]
[EndTime "13:53:06 PDT"]
[Termination "Stanbad1 won by checkmate"]

1. e4 {[%clk 0:04:57.9]} 1... d6 {[%clk 0:04:58.1]} 2. d4 {[%clk 0:04:56.5]}
2... Nf6 {[%clk 0:04:57.7]} 3. Nc3 {[%clk 0:04:54.3]} 3... g6 {[%clk 0:04:57.2]}
4. h3 {[%clk 0:04:52.1]} 4... Bg7 {[%clk 0:04:55.9]} 5. Be3 {[%clk 0:04:51]}
5... O-O {[%clk 0:04:55.2]} 6. Qd2 {[%clk 0:04:49.7]} 6... c5 {[%clk 0:04:54.5]}
7. dxc5 {[%clk 0:04:48.2]} 7... dxc5 {[%clk 0:04:53.2]} 8. O-O-O {[%clk
0:04:47]} 8... Qa5 {[%clk 0:04:51.4]} 9. Nd5 {[%clk 0:04:38.7]} 9... Qxa2 {[%clk
0:04:49.3]} 10. Nxe7+ {[%clk 0:04:37.6]} 10... Kh8 {[%clk 0:04:48.1]} 11. Qd3
{[%clk 0:04:16.9]} 11... Qa1+ {[%clk 0:04:42]} 12. Kd2 {[%clk 0:04:15.7]} 12...
Qxb2 {[%clk 0:04:41.9]} 13. Bxc5 {[%clk 0:04:12.2]} 13... Be6 {[%clk 0:04:36.5]}
14. Nxg6+ {[%clk 0:04:07.7]} 14... hxg6 {[%clk 0:04:33.7]} 15. Bxf8 {[%clk
0:04:06.4]} 15... Bxf8 {[%clk 0:04:33.6]} 16. Qd8 {[%clk 0:04:03.3]} 16... Kg7
{[%clk 0:04:29.4]} 17. Nf3 {[%clk 0:03:57.8]} 17... Bb4+ {[%clk 0:04:25]} 18.
Kd3 {[%clk 0:03:54.8]} 18... b5 {[%clk 0:04:20.6]} 19. Nd2 {[%clk 0:03:41.7]}
19... Bc4+ {[%clk 0:04:08.9]} 20. Nxc4 {[%clk 0:03:39.7]} 20... bxc4+ {[%clk
0:04:08.8]} 21. Ke3 {[%clk 0:03:36.2]} 21... Bc5+ {[%clk 0:04:06]} 22. Kf3
{[%clk 0:03:31.5]} 22... Qxc2 {[%clk 0:04:04.3]} 23. Be2 {[%clk 0:03:20.7]}
23... Qxe4+ {[%clk 0:04:00.1]} 24. Kg3 {[%clk 0:03:19.3]} 24... Qxe2 {[%clk
0:03:59.7]} 25. f3 {[%clk 0:03:13]} 25... Qf2+ {[%clk 0:03:57.7]} 26. Kf4 {[%clk
0:03:12.1]} 26... Nh5+ {[%clk 0:03:56.8]} 27. Ke4 {[%clk 0:03:07.6]} 27... Qe3+
{[%clk 0:03:55]} 28. Kd5 {[%clk 0:03:05.1]} 28... Nf4+ {[%clk 0:03:54]} 29. Kxc4
{[%clk 0:03:02.4]} 29... Qe6+ {[%clk 0:03:53.5]} 30. Kxc5 {[%clk 0:02:59.6]}
30... Na6+ {[%clk 0:03:51.4]} 31. Kb5 {[%clk 0:02:56.5]} 31... Rxd8 {[%clk
0:03:51]} 32. Rxd8 {[%clk 0:02:55.2]} 32... Qb6+ {[%clk 0:03:50.4]} 33. Kc4
{[%clk 0:02:52.3]} 33... Qb4# {[%clk 0:03:48.8]} 0-1

[Event "Live Chess"]
[Site "Chess.com"]
[Date "2023.05.20"]
[Round "-"]
[White "Pandreq"]
[Black "tuppyglossop"]
[Result "0-1"]
[WhiteElo "1274"]
[BlackElo "1635"]
[TimeControl "300"]
[EndTime "13:53:07 PDT"]
[Termination "tuppyglossop won on time"]

1. d4 {[%clk 0:04:56.7]} 1... d5 {[%clk 0:04:58.3]} 2. c4 {[%clk 0:04:55.5]}
2... e6 {[%clk 0:04:56.7]} 3. cxd5 {[%clk 0:04:54.3]} 3... exd5 {[%clk
0:04:55.1]} 4. Nc3 {[%clk 0:04:53.8]} 4... Nf6 {[%clk 0:04:53.7]} 5. Nf3 {[%clk
0:04:52.4]} 5... Be7 {[%clk 0:04:50.1]} 6. Bf4 {[%clk 0:04:51.4]} 6... c6 {[%clk
0:04:48.8]} 7. e3 {[%clk 0:04:50.3]} 7... Bg4 {[%clk 0:04:46.9]} 8. Be2 {[%clk
0:04:49.1]} 8... O-O {[%clk 0:04:45.2]} 9. h3 {[%clk 0:04:48.2]} 9... Bh5 {[%clk
0:04:43.8]} 10. Nd2 {[%clk 0:04:45.7]} 10... Bxe2 {[%clk 0:04:41.7]} 11. Qxe2
{[%clk 0:04:42.8]} 11... Re8 {[%clk 0:04:40.2]} 12. O-O {[%clk 0:04:41.4]} 12...
Qb6 {[%clk 0:04:34.7]} 13. Nb3 {[%clk 0:04:36.4]} 13... Nbd7 {[%clk 0:04:26.6]}
14. Na4 {[%clk 0:04:28]} 14... Qd8 {[%clk 0:04:23.4]} 15. Rac1 {[%clk
0:04:20.6]} 15... Nf8 {[%clk 0:04:20.4]} 16. Nac5 {[%clk 0:04:16.3]} 16... Bd6
{[%clk 0:04:15.7]} 17. Bxd6 {[%clk 0:04:09.9]} 17... Qxd6 {[%clk 0:04:13.4]} 18.
Nxb7 {[%clk 0:04:08.5]} 18... Qe7 {[%clk 0:04:01.2]} 19. N3c5 {[%clk 0:04:03.1]}
19... Rac8 {[%clk 0:03:55.2]} 20. Qa6 {[%clk 0:03:48]} 20... Ne4 {[%clk
0:03:46.4]} 21. Qxa7 {[%clk 0:03:38.4]} 21... Nxc5 {[%clk 0:03:43.5]} 22. Qxc5
{[%clk 0:03:37]} 22... Qxb7 {[%clk 0:03:40.8]} 23. b4 {[%clk 0:03:32.8]} 23...
Ne6 {[%clk 0:03:39.1]} 24. Qc3 {[%clk 0:03:30.7]} 24... Ng5 {[%clk 0:03:23.9]}
25. Rb1 {[%clk 0:03:22.4]} 25... Ne4 {[%clk 0:03:21.7]} 26. Qc2 {[%clk
0:03:12.3]} 26... Ra8 {[%clk 0:03:13.3]} 27. Rfc1 {[%clk 0:03:07.1]} 27... Rec8
{[%clk 0:03:11.3]} 28. a4 {[%clk 0:02:56.3]} 28... h6 {[%clk 0:03:01.8]} 29. Qa2
{[%clk 0:02:36.9]} 29... Qa6 {[%clk 0:02:50.6]} 30. Ra1 {[%clk 0:02:25.5]} 30...
Kh8 {[%clk 0:02:35.4]} 31. f3 {[%clk 0:02:21.1]} 31... Nd6 {[%clk 0:02:30.6]}
32. b5 {[%clk 0:02:09.2]} 32... cxb5 {[%clk 0:02:22.7]} 33. Rxc8+ {[%clk
0:02:07.3]} 33... Rxc8 {[%clk 0:02:12.7]} 34. Qxd5 {[%clk 0:02:04]} 34... bxa4
{[%clk 0:02:02.9]} 35. e4 {[%clk 0:01:50]} 35... Kg8 {[%clk 0:01:47.5]} 36. e5
{[%clk 0:01:48.7]} 36... Nf5 {[%clk 0:01:43.6]} 37. Qd7 {[%clk 0:01:26.7]} 37...
Ne3 {[%clk 0:01:21.4]} 38. Qxa4 {[%clk 0:01:16.3]} 38... Qxa4 {[%clk 0:01:12.4]}
39. Rxa4 {[%clk 0:01:14.3]} 39... Nf5 {[%clk 0:01:02.1]} 40. d5 {[%clk
0:01:02.9]} 40... Kf8 {[%clk 0:00:59.1]} 41. d6 {[%clk 0:01:00.1]} 41... Ke8
{[%clk 0:00:54.2]} 42. g4 {[%clk 0:00:57.9]} 42... Nh4 {[%clk 0:00:45.4]} 43.
Kf2 {[%clk 0:00:50.7]} 43... Kd7 {[%clk 0:00:42.4]} 44. Kg3 {[%clk 0:00:45.7]}
44... Ng6 {[%clk 0:00:40.2]} 45. Ra7+ {[%clk 0:00:37.6]} 45... Ke6 {[%clk
0:00:37]} 46. f4 {[%clk 0:00:33.4]} 46... Rc3+ {[%clk 0:00:34.7]} 47. Kg2 {[%clk
0:00:32]} 47... Nxf4+ {[%clk 0:00:33.1]} 48. Kf1 {[%clk 0:00:23.3]} 48... Rd3
{[%clk 0:00:25.2]} 49. h4 {[%clk 0:00:13.3]} 49... Ng6 {[%clk 0:00:13.2]} 50. h5
{[%clk 0:00:10.4]} 50... Nxe5 {[%clk 0:00:12.1]} 51. Re7+ {[%clk 0:00:07.8]}
51... Kxd6 {[%clk 0:00:09.7]} 0-1

[Event "Live Chess"]
[Site "Chess.com"]
[Date "2023.05.20"]
[Round "-"]
[White "GEMdzq"]
[Black "toog"]
[Result "0-1"]
[WhiteElo "2221"]
[BlackElo "2615"]
[TimeControl "300"]
[EndTime "13:53:14 PDT"]
[Termination "toog won by checkmate"]

1. e4 {[%clk 0:04:57.5]} 1... e5 {[%clk 0:04:54]} 2. Nf3 {[%clk 0:04:55.7]} 2...
d6 {[%clk 0:04:46.7]} 3. Bc4 {[%clk 0:04:52.1]} 3... Nf6 {[%clk 0:04:38.8]} 4.
d3 {[%clk 0:04:38.6]} 4... Be7 {[%clk 0:04:33.9]} 5. O-O {[%clk 0:04:31.5]} 5...
O-O {[%clk 0:04:31.5]} 6. Re1 {[%clk 0:04:23.9]} 6... c6 {[%clk 0:04:30.2]} 7.
Bb3 {[%clk 0:04:21.9]} 7... a5 {[%clk 0:04:28.8]} 8. a4 {[%clk 0:04:18.1]} 8...
Na6 {[%clk 0:04:26.9]} 9. c3 {[%clk 0:04:16.7]} 9... h6 {[%clk 0:04:21.7]} 10.
Nbd2 {[%clk 0:04:14.2]} 10... Kh8 {[%clk 0:04:06.2]} 11. Nf1 {[%clk 0:04:03.3]}
11... Ng8 {[%clk 0:03:57.4]} 12. d4 {[%clk 0:03:57.6]} 12... Bf6 {[%clk
0:03:52.1]} 13. Ng3 {[%clk 0:03:49.7]} 13... Qc7 {[%clk 0:03:44.4]} 14. Be3
{[%clk 0:03:39.2]} 14... g6 {[%clk 0:03:42.7]} 15. Qd2 {[%clk 0:03:34.2]} 15...
Bg7 {[%clk 0:03:41.9]} 16. Rad1 {[%clk 0:02:57.9]} 16... Bg4 {[%clk 0:03:40.5]}
17. dxe5 {[%clk 0:02:52.5]} 17... dxe5 {[%clk 0:03:38.6]} 18. Qd6 {[%clk
0:02:50.7]} 18... Qxd6 {[%clk 0:03:36.4]} 19. Rxd6 {[%clk 0:02:50.6]} 19... Bxf3
{[%clk 0:03:19.3]} 20. gxf3 {[%clk 0:02:50.5]} 20... Nf6 {[%clk 0:03:17.8]} 21.
Bxh6 {[%clk 0:02:40.1]} 21... Bxh6 {[%clk 0:03:17.7]} 22. Rxf6 {[%clk
0:02:38.6]} 22... Nc5 {[%clk 0:03:05.7]} 23. Ba2 {[%clk 0:02:26]} 23... Kg7
{[%clk 0:03:01.9]} 24. Rd6 {[%clk 0:02:18.5]} 24... Rad8 {[%clk 0:02:58.5]} 25.
Red1 {[%clk 0:02:12.9]} 25... Rxd6 {[%clk 0:02:57.3]} 26. Rxd6 {[%clk
0:02:12.8]} 26... Nxa4 {[%clk 0:02:56.7]} 27. Rd7 {[%clk 0:02:06.8]} 27... Nc5
{[%clk 0:02:54.8]} 28. Rc7 {[%clk 0:02:00.8]} 28... Bg5 {[%clk 0:02:52.1]} 29.
b4 {[%clk 0:01:54.2]} 29... Bd8 {[%clk 0:02:27.9]} 30. Rc8 {[%clk 0:01:49]}
30... axb4 {[%clk 0:02:23.9]} 31. cxb4 {[%clk 0:01:48.9]} 31... Na6 {[%clk
0:02:23.4]} 32. b5 {[%clk 0:01:39.3]} 32... cxb5 {[%clk 0:02:22.2]} 33. Bd5
{[%clk 0:01:34.3]} 33... Be7 {[%clk 0:02:14]} 34. Rc1 {[%clk 0:01:10.3]} 34...
Nc5 {[%clk 0:02:11.9]} 35. Rb1 {[%clk 0:01:07]} 35... Ra8 {[%clk 0:02:04.4]} 36.
Rxb5 {[%clk 0:01:05.4]} 36... Ra1+ {[%clk 0:02:02.7]} 37. Kg2 {[%clk 0:01:04.7]}
37... Nd3 {[%clk 0:01:59.4]} 38. Rxb7 {[%clk 0:00:58.9]} 38... Nf4# {[%clk
0:01:57.1]} 0-1